[Event "Titled Tuesday Blitz August 15 Early 2023"]
[White "D`Arruda, Ricardo D."]
[Black "Lobanov, Sergei"]
[WhiteFideId "100692"]
[BlackFideId "24183750"]
[WhiteElo "2524"]
[BlackElo "2766"]
[Result "1-0"]
[Round "2"]
[TimeControl "180+1"]
[Date "2023.08.15"]
[WhiteClock "0:01:07"]
[BlackClock "0:00:00"]
[Board "63"]

1. Nf3 {[%clk 0:02:55]}  d5 {[%clk 0:02:59]} 2. b3 {[%clk 0:02:53]}  c5 {[%clk 0:02:56]} 3. e3 {[%clk 0:02:53]}  a6 {[%clk 0:02:56]} 4. Bb2 {[%clk 0:02:54]}  Nc6 {[%clk 0:02:56]} 5. Be2 {[%clk 0:02:54]}  Bg4 {[%clk 0:02:51]} 6. O-O {[%clk 0:02:53]}  Nf6 {[%clk 0:02:50]} 7. Ne5 {[%clk 0:02:53]}  Bxe2 {[%clk 0:02:49]} 8. Qxe2 {[%clk 0:02:54]}  Nxe5 {[%clk 0:02:46]} 9. Bxe5 {[%clk 0:02:54]}  e6 {[%clk 0:02:47]} 10. d3 {[%clk 0:02:52]}  Bd6 {[%clk 0:02:46]} 11. f4 {[%clk 0:02:45]}  O-O {[%clk 0:02:46]} 12. Nd2 {[%clk 0:02:44]}  Rc8 {[%clk 0:02:45]} 13. c4 {[%clk 0:02:42]}  b5 {[%clk 0:02:27]} 14. Nf3 {[%clk 0:02:41]}  Qe7 {[%clk 0:02:22]} 15. Rfd1 {[%clk 0:02:39]}  Rfd8 {[%clk 0:02:18]} 16. Rac1 {[%clk 0:02:37]}  Bb8 {[%clk 0:02:09]} 17. h3 {[%clk 0:02:34]}  Nd7 {[%clk 0:01:28]} 18. Bxb8 {[%clk 0:02:32]}  Nxb8 {[%clk 0:01:29]} 19. Ne5 {[%clk 0:02:28]}  f6 {[%clk 0:01:28]} 20. Nf3 {[%clk 0:02:28]}  Nc6 {[%clk 0:01:28]} 21. d4 {[%clk 0:02:15]}  cxd4 {[%clk 0:01:28]} 22. Nxd4 {[%clk 0:02:15]}  Nxd4 {[%clk 0:01:28]} 23. Rxd4 {[%clk 0:02:15]}  bxc4 {[%clk 0:01:26]} 24. bxc4 {[%clk 0:02:14]}  e5 {[%clk 0:01:19]} 25. fxe5 {[%clk 0:02:12]}  fxe5 {[%clk 0:01:20]} 26. Rdd1 {[%clk 0:02:11]}  Qc5 {[%clk 0:01:15]} 27. cxd5 {[%clk 0:02:01]}  Qxc1 {[%clk 0:01:13]} 28. Rxc1 {[%clk 0:02:02]}  Rxc1+ {[%clk 0:01:13]} 29. Kh2 {[%clk 0:02:02]}  Rxd5 {[%clk 0:00:55]} 30. Qxa6 {[%clk 0:02:02]}  Rdc5 {[%clk 0:00:53]} 31. Qe6+ {[%clk 0:01:58]}  Kf8 {[%clk 0:00:52]} 32. a4 {[%clk 0:01:58]}  R1c2 {[%clk 0:00:35]} 33. a5 {[%clk 0:01:54]}  Rd2 {[%clk 0:00:30]} 34. a6 {[%clk 0:01:48]}  Rcc2 {[%clk 0:00:26]} 35. Qf5+ {[%clk 0:01:47]}  Kg8 {[%clk 0:00:21]} 36. Qe4 {[%clk 0:01:38]}  Ra2 {[%clk 0:00:20]} 37. Qc4+ {[%clk 0:01:24]}  Kf8 {[%clk 0:00:16]} 38. Qc8+ {[%clk 0:01:22]}  Ke7 {[%clk 0:00:14]} 39. Qb7+ {[%clk 0:01:22]}  Kf6 {[%clk 0:00:08]} 40. a7 {[%clk 0:01:20]}  Rd8 {[%clk 0:00:03]} 41. Qb6+ {[%clk 0:01:12]}  Ke7 {[%clk 0:00:03]} 42. Qc5+ {[%clk 0:01:07]}  Ke6 {[%clk 0:00:00]} 43. Qc4+ {[%clk 0:01:07]} 1-0


[Site "https://www.chess.com"]

[Event "Titled Tuesday Blitz August 15 Early 2023"]
[White "Kuzmin, Roman"]
[Black "Materia, Marco"]
[WhiteFideId "44134932"]
[BlackFideId "45150451"]
[WhiteElo "2521"]
[BlackElo "2764"]
[Result "0-1"]
[Round "2"]
[TimeControl "180+1"]
[Date "2023.08.15"]
[WhiteClock "0:00:03"]
[BlackClock "0:00:43"]
[Board "66"]

1. e4 {[%clk 0:03:00]}  c5 {[%clk 0:02:59]} 2. Nf3 {[%clk 0:02:59]}  e6 {[%clk 0:03:00]} 3. d4 {[%clk 0:02:59]}  cxd4 {[%clk 0:03:00]} 4. Nxd4 {[%clk 0:03:00]}  Nc6 {[%clk 0:03:00]} 5. Nc3 {[%clk 0:03:01]}  Qc7 {[%clk 0:03:00]} 6. Be3 {[%clk 0:03:01]}  a6 {[%clk 0:03:00]} 7. Qd2 {[%clk 0:03:01]}  Nf6 {[%clk 0:03:00]} 8. O-O-O {[%clk 0:03:02]}  Be7 {[%clk 0:02:58]} 9. f3 {[%clk 0:03:01]}  b5 {[%clk 0:02:58]} 10. Nxc6 {[%clk 0:02:58]}  dxc6 {[%clk 0:02:56]} 11. g4 {[%clk 0:02:48]}  O-O {[%clk 0:02:54]} 12. h4 {[%clk 0:02:36]}  Rd8 {[%clk 0:02:48]} 13. Qf2 {[%clk 0:02:29]}  Rxd1+ {[%clk 0:02:48]} 14. Nxd1 {[%clk 0:02:30]}  e5 {[%clk 0:02:45]} 15. h5 {[%clk 0:02:26]}  h6 {[%clk 0:02:41]} 16. g5 {[%clk 0:02:04]}  hxg5 {[%clk 0:02:40]} 17. h6 {[%clk 0:02:05]}  g6 {[%clk 0:02:32]} 18. h7+ {[%clk 0:02:05]}  Kh8 {[%clk 0:02:33]} 19. Bxg5 {[%clk 0:02:02]}  Nh5 {[%clk 0:02:09]} 20. Be3 {[%clk 0:01:11]}  Be6 {[%clk 0:02:05]} 21. Kb1 {[%clk 0:01:11]}  Rd8 {[%clk 0:01:54]} 22. Be2 {[%clk 0:01:11]}  c5 {[%clk 0:01:47]} 23. Qg2 {[%clk 0:00:54]}  Nf4 {[%clk 0:01:42]} 24. Qh2 {[%clk 0:00:42]}  Bf6 {[%clk 0:01:36]} 25. Nc3 {[%clk 0:00:23]}  b4 {[%clk 0:01:34]} 26. Na4 {[%clk 0:00:22]}  Be7 {[%clk 0:01:17]} 27. Qf2 {[%clk 0:00:22]}  Qa5 {[%clk 0:01:09]} 28. b3 {[%clk 0:00:22]}  Rc8 {[%clk 0:01:10]} 29. Rd1 {[%clk 0:00:12]}  c4 {[%clk 0:01:05]} 30. Bxf4 {[%clk 0:00:10]}  exf4 {[%clk 0:01:05]} 31. Qd4+ {[%clk 0:00:11]}  f6 {[%clk 0:01:06]} 32. Rg1 {[%clk 0:00:07]}  g5 {[%clk 0:01:00]} 33. Qb6 {[%clk 0:00:03]}  Qxb6 {[%clk 0:00:54]} 34. Nxb6 {[%clk 0:00:04]}  Bc5 {[%clk 0:00:54]} 35. Nxc8 {[%clk 0:00:04]}  Bxg1 {[%clk 0:00:54]} 36. Nd6 {[%clk 0:00:04]}  cxb3 {[%clk 0:00:53]} 37. axb3 {[%clk 0:00:05]}  a5 {[%clk 0:00:50]} 38. Bc4 {[%clk 0:00:05]}  Bh3 {[%clk 0:00:48]} 39. Kc1 {[%clk 0:00:04]}  Kxh7 {[%clk 0:00:46]} 40. Kd2 {[%clk 0:00:03]}  Bb6 {[%clk 0:00:47]} 41. Ke2 {[%clk 0:00:03]}  Kg6 {[%clk 0:00:47]} 42. Bf7+ {[%clk 0:00:02]}  Kg7 {[%clk 0:00:47]} 43. Be8 {[%clk 0:00:02]}  Kf8 {[%clk 0:00:47]} 44. Bc6 {[%clk 0:00:02]}  Ke7 {[%clk 0:00:47]} 45. Nc4 {[%clk 0:00:03]}  Bc7 {[%clk 0:00:47]} 46. Bd5 {[%clk 0:00:03]}  f5 {[%clk 0:00:46]} 47. exf5 {[%clk 0:00:03]}  Bxf5 {[%clk 0:00:45]} 48. Kd2 {[%clk 0:00:03]}  Kf6 {[%clk 0:00:45]} 49. Bc6 {[%clk 0:00:02]}  g4 {[%clk 0:00:45]} 50. fxg4 {[%clk 0:00:02]}  Bxg4 {[%clk 0:00:46]} 51. Kd3 {[%clk 0:00:02]}  Kg5 {[%clk 0:00:45]} 52. Be4 {[%clk 0:00:02]}  Kh4 {[%clk 0:00:45]} 53. Nd2 {[%clk 0:00:03]}  Kg3 {[%clk 0:00:45]} 54. Kd4 {[%clk 0:00:02]}  f3 {[%clk 0:00:44]} 55. Ke3 {[%clk 0:00:02]}  Bf4+ {[%clk 0:00:43]} 56. Kd3 {[%clk 0:00:03]}  Bxd2 {[%clk 0:00:42]} 57. Kxd2 {[%clk 0:00:03]}  f2 {[%clk 0:00:43]} 0-1


[Site "https://www.chess.com"]

[Event "Titled Tuesday Blitz August 15 Early 2023"]
[White "Tikhonov, Viacheslav"]
[Black "Trost, Edvin"]
[WhiteFideId "44196407"]
[BlackFideId "1729519"]
[WhiteElo "2517"]
[BlackElo "2753"]
[Result "0-1"]
[Round "2"]
[TimeControl "180+1"]
[Date "2023.08.15"]
[WhiteClock "0:00:22"]
[BlackClock "0:00:03"]
[Board "67"]

1. d4 {[%clk 0:02:57]}  d5 {[%clk 0:01:43]} 2. c4 {[%clk 0:02:57]}  e6 {[%clk 0:01:42]} 3. Nf3 {[%clk 0:02:57]}  Nf6 {[%clk 0:01:41]} 4. g3 {[%clk 0:02:58]}  Be7 {[%clk 0:01:25]} 5. Bg2 {[%clk 0:02:57]}  O-O {[%clk 0:01:25]} 6. O-O {[%clk 0:02:58]}  a5 {[%clk 0:01:22]} 7. Nc3 {[%clk 0:02:55]}  dxc4 {[%clk 0:01:21]} 8. Ne5 {[%clk 0:02:53]}  Nc6 {[%clk 0:01:22]} 9. Bxc6 {[%clk 0:02:39]}  bxc6 {[%clk 0:01:23]} 10. Nxc6 {[%clk 0:02:40]}  Qe8 {[%clk 0:01:23]} 11. Nxe7+ {[%clk 0:02:39]}  Qxe7 {[%clk 0:01:23]} 12. Qa4 {[%clk 0:02:37]}  Qb4 {[%clk 0:01:13]} 13. Bg5 {[%clk 0:02:24]}  Nd5 {[%clk 0:00:53]} 14. Rfc1 {[%clk 0:02:05]}  Nxc3 {[%clk 0:00:39]} 15. Qxb4 {[%clk 0:02:04]}  Nxe2+ {[%clk 0:00:40]} 16. Kf1 {[%clk 0:02:05]}  Nxg3+ {[%clk 0:00:40]} 17. hxg3 {[%clk 0:02:06]}  axb4 {[%clk 0:00:41]} 18. Be7 {[%clk 0:02:00]}  Re8 {[%clk 0:00:41]} 19. Bxb4 {[%clk 0:02:01]}  Bb7 {[%clk 0:00:41]} 20. Kg1 {[%clk 0:01:58]}  Bd5 {[%clk 0:00:35]} 21. Bc3 {[%clk 0:01:58]}  f5 {[%clk 0:00:33]} 22. f4 {[%clk 0:01:57]}  Kf7 {[%clk 0:00:32]} 23. a4 {[%clk 0:01:56]}  Kg6 {[%clk 0:00:32]} 24. a5 {[%clk 0:01:57]}  Ra6 {[%clk 0:00:32]} 25. Kf2 {[%clk 0:01:57]}  h6 {[%clk 0:00:30]} 26. Ra4 {[%clk 0:01:55]}  Rb8 {[%clk 0:00:29]} 27. Rb4 {[%clk 0:01:54]}  Rh8 {[%clk 0:00:25]} 28. Rb5 {[%clk 0:01:51]}  h5 {[%clk 0:00:26]} 29. Ke3 {[%clk 0:01:11]}  Kf7 {[%clk 0:00:22]} 30. b3 {[%clk 0:01:06]}  cxb3 {[%clk 0:00:20]} 31. Bb4 {[%clk 0:01:07]}  c6 {[%clk 0:00:19]} 32. Rb7+ {[%clk 0:01:06]}  Kg6 {[%clk 0:00:19]} 33. Bd6 {[%clk 0:01:06]}  Rha8 {[%clk 0:00:17]} 34. Rc5 {[%clk 0:01:01]}  R8a7 {[%clk 0:00:15]} 35. Rb8 {[%clk 0:00:56]}  Rxa5 {[%clk 0:00:13]} 36. Rxa5 {[%clk 0:00:56]}  Rxa5 {[%clk 0:00:14]} 37. Be5 {[%clk 0:00:54]}  Rb5 {[%clk 0:00:14]} 38. Rxb5 {[%clk 0:00:52]}  cxb5 {[%clk 0:00:15]} 39. Kd2 {[%clk 0:00:53]}  Kh6 {[%clk 0:00:08]} 40. Bd6 {[%clk 0:00:46]}  g5 {[%clk 0:00:07]} 41. Be7 {[%clk 0:00:45]}  gxf4 {[%clk 0:00:02]} 42. gxf4 {[%clk 0:00:46]}  Kg6 {[%clk 0:00:03]} 43. Kc3 {[%clk 0:00:44]}  Kf7 {[%clk 0:00:03]} 44. Bh4 {[%clk 0:00:44]}  Ke8 {[%clk 0:00:04]} 45. Be1 {[%clk 0:00:45]}  Kd8 {[%clk 0:00:04]} 46. Kb2 {[%clk 0:00:45]}  Kd7 {[%clk 0:00:04]} 47. Ka3 {[%clk 0:00:45]}  Kc6 {[%clk 0:00:05]} 48. Kb2 {[%clk 0:00:46]}  Bc4 {[%clk 0:00:06]} 49. Bh4 {[%clk 0:00:35]}  Kd5 {[%clk 0:00:07]} 50. Kc3 {[%clk 0:00:34]}  Ke4 {[%clk 0:00:04]} 51. Bg5 {[%clk 0:00:32]}  b4+ {[%clk 0:00:04]} 52. Kb2 {[%clk 0:00:30]}  Kxd4 {[%clk 0:00:04]} 53. Be7 {[%clk 0:00:26]}  Ke4 {[%clk 0:00:02]} 54. Bg5 {[%clk 0:00:26]}  Kf3 {[%clk 0:00:01]} 55. Kb1 {[%clk 0:00:25]}  Kg4 {[%clk 0:00:02]} 56. Kb2 {[%clk 0:00:22]}  h4 {[%clk 0:00:03]} 0-1


[Site "https://www.chess.com"]

[Event "Titled Tuesday Blitz August 15 Early 2023"]
[White "Stribuk, Artiom"]
[Black "Mickiewicz, Piotr"]
[WhiteFideId "13515659"]
[BlackFideId "1114891"]
[WhiteElo "2753"]
[BlackElo "2515"]
[Result "0-1"]
[Round "2"]
[TimeControl "180+1"]
[Date "2023.08.15"]
[WhiteClock "0:00:00"]
[BlackClock "0:00:41"]
[Board "68"]

1. d4 {[%clk 0:03:00]}  d5 {[%clk 0:02:58]} 2. c4 {[%clk 0:03:00]}  c6 {[%clk 0:02:58]} 3. Nc3 {[%clk 0:02:59]}  Nf6 {[%clk 0:02:57]} 4. e3 {[%clk 0:02:58]}  e6 {[%clk 0:02:53]} 5. Nf3 {[%clk 0:02:54]}  Nbd7 {[%clk 0:02:52]} 6. Qc2 {[%clk 0:02:53]}  Bd6 {[%clk 0:02:50]} 7. g4 {[%clk 0:02:54]}  h6 {[%clk 0:02:36]} 8. Rg1 {[%clk 0:02:53]}  e5 {[%clk 0:02:27]} 9. cxd5 {[%clk 0:02:49]}  cxd5 {[%clk 0:02:25]} 10. Nb5 {[%clk 0:02:41]}  Bb8 {[%clk 0:02:22]} 11. Bd2 {[%clk 0:02:13]}  e4 {[%clk 0:02:15]} 12. Nh4 {[%clk 0:02:13]}  a6 {[%clk 0:02:10]} 13. Nc3 {[%clk 0:02:08]}  O-O {[%clk 0:02:09]} 14. g5 {[%clk 0:01:35]}  hxg5 {[%clk 0:02:04]} 15. Rxg5 {[%clk 0:01:34]}  Nh7 {[%clk 0:01:51]} 16. Rh5 {[%clk 0:01:14]}  Ndf6 {[%clk 0:01:49]} 17. Rf5 {[%clk 0:01:01]}  Bxf5 {[%clk 0:01:48]} 18. Nxf5 {[%clk 0:01:02]}  Qd7 {[%clk 0:01:46]} 19. Ng3 {[%clk 0:00:38]}  Ng5 {[%clk 0:01:43]} 20. Be2 {[%clk 0:00:37]}  Qh3 {[%clk 0:01:38]} 21. Qb3 {[%clk 0:00:34]}  Qxh2 {[%clk 0:01:33]} 22. Nf1 {[%clk 0:00:34]}  Qd6 {[%clk 0:01:23]} 23. Qxb7 {[%clk 0:00:31]}  Bc7 {[%clk 0:01:20]} 24. Qb3 {[%clk 0:00:24]}  Rab8 {[%clk 0:01:18]} 25. Qc2 {[%clk 0:00:23]}  Rfc8 {[%clk 0:01:16]} 26. O-O-O {[%clk 0:00:21]}  Ba5 {[%clk 0:01:15]} 27. Kb1 {[%clk 0:00:20]}  Bxc3 {[%clk 0:01:12]} 28. Bxc3 {[%clk 0:00:20]}  Nf3 {[%clk 0:01:11]} 29. Nd2 {[%clk 0:00:14]}  Nxd2+ {[%clk 0:01:07]} 30. Qxd2 {[%clk 0:00:15]}  Nd7 {[%clk 0:01:01]} 31. Ka1 {[%clk 0:00:14]}  Nb6 {[%clk 0:00:56]} 32. b3 {[%clk 0:00:13]}  a5 {[%clk 0:00:48]} 33. Bxa5 {[%clk 0:00:13]}  Ra8 {[%clk 0:00:47]} 34. Bxb6 {[%clk 0:00:06]}  Qxb6 {[%clk 0:00:46]} 35. Kb2 {[%clk 0:00:06]}  Qa7 {[%clk 0:00:44]} 36. a4 {[%clk 0:00:04]}  Rcb8 {[%clk 0:00:42]} 37. Qc2 {[%clk 0:00:00]}  Qxa4 {[%clk 0:00:41]} 0-1


[Site "https://www.chess.com"]

[Event "Titled Tuesday Blitz August 15 Early 2023"]
[White "Ansh M Shah"]
[Black "Brodowski, Piotr"]
[WhiteFideId "25033379"]
[BlackFideId "1124480"]
[WhiteElo "2515"]
[BlackElo "2748"]
[Result "1-0"]
[Round "2"]
[TimeControl "180+1"]
[Date "2023.08.15"]
[WhiteClock "0:00:20"]
[BlackClock "0:00:18"]
[Board "69"]

1. d4 {[%clk 0:03:00]}  d6 {[%clk 0:02:58]} 2. c4 {[%clk 0:03:00]}  e5 {[%clk 0:02:58]} 3. g3 {[%clk 0:03:00]}  exd4 {[%clk 0:02:57]} 4. Qxd4 {[%clk 0:03:01]}  Nc6 {[%clk 0:02:58]} 5. Qd1 {[%clk 0:03:01]}  g6 {[%clk 0:02:58]} 6. Bg2 {[%clk 0:03:02]}  Bg7 {[%clk 0:02:58]} 7. Nf3 {[%clk 0:03:02]}  Nge7 {[%clk 0:02:57]} 8. O-O {[%clk 0:02:47]}  Be6 {[%clk 0:02:56]} 9. Nbd2 {[%clk 0:02:44]}  h6 {[%clk 0:02:57]} 10. Rb1 {[%clk 0:02:34]}  O-O {[%clk 0:02:52]} 11. b3 {[%clk 0:02:34]}  d5 {[%clk 0:02:45]} 12. Bb2 {[%clk 0:02:33]}  dxc4 {[%clk 0:02:41]} 13. Bxg7 {[%clk 0:02:31]}  Kxg7 {[%clk 0:02:41]} 14. Nxc4 {[%clk 0:02:31]}  Qxd1 {[%clk 0:02:15]} 15. Rfxd1 {[%clk 0:02:25]}  Bxc4 {[%clk 0:02:16]} 16. bxc4 {[%clk 0:02:23]}  b6 {[%clk 0:02:16]} 17. Nd4 {[%clk 0:02:11]}  Nxd4 {[%clk 0:02:12]} 18. Rxd4 {[%clk 0:02:04]}  Rad8 {[%clk 0:02:11]} 19. Rbd1 {[%clk 0:01:56]}  Rxd4 {[%clk 0:02:00]} 20. Rxd4 {[%clk 0:01:57]}  Re8 {[%clk 0:00:56]} 21. Rd7 {[%clk 0:01:51]}  Nf5 {[%clk 0:00:57]} 22. e3 {[%clk 0:01:34]}  Re7 {[%clk 0:00:57]} 23. Rxe7 {[%clk 0:01:32]}  Nxe7 {[%clk 0:00:57]} 24. Kf1 {[%clk 0:01:31]}  Kf6 {[%clk 0:00:57]} 25. Ke2 {[%clk 0:01:32]}  Ke6 {[%clk 0:00:54]} 26. Kd3 {[%clk 0:01:32]}  f5 {[%clk 0:00:53]} 27. Kd4 {[%clk 0:01:32]}  c5+ {[%clk 0:00:54]} 28. Kd3 {[%clk 0:01:32]}  Kd6 {[%clk 0:00:49]} 29. f4 {[%clk 0:01:30]}  g5 {[%clk 0:00:44]} 30. fxg5 {[%clk 0:01:25]}  hxg5 {[%clk 0:00:44]} 31. h4 {[%clk 0:01:26]}  gxh4 {[%clk 0:00:36]} 32. gxh4 {[%clk 0:01:27]}  Ke5 {[%clk 0:00:37]} 33. a4 {[%clk 0:01:19]}  Kf6 {[%clk 0:00:28]} 34. h5 {[%clk 0:01:03]}  Kg5 {[%clk 0:00:27]} 35. Bf3 {[%clk 0:01:04]}  a5 {[%clk 0:00:16]} 36. Bd1 {[%clk 0:00:44]}  Nc6 {[%clk 0:00:16]} 37. Kc3 {[%clk 0:00:18]}  Ne5 {[%clk 0:00:15]} 38. Be2 {[%clk 0:00:18]}  Ng4 {[%clk 0:00:14]} 39. Kd3 {[%clk 0:00:14]}  Kxh5 {[%clk 0:00:14]} 40. e4 {[%clk 0:00:14]}  Kg5 {[%clk 0:00:15]} 41. exf5 {[%clk 0:00:14]}  Kxf5 {[%clk 0:00:15]} 42. Bxg4+ {[%clk 0:00:15]}  Kxg4 {[%clk 0:00:15]} 43. Ke4 {[%clk 0:00:15]}  Kg3 {[%clk 0:00:15]} 44. Kd5 {[%clk 0:00:16]}  Kf3 {[%clk 0:00:16]} 45. Kc6 {[%clk 0:00:17]}  Ke3 {[%clk 0:00:17]} 46. Kxb6 {[%clk 0:00:18]}  Kd4 {[%clk 0:00:17]} 47. Kb5 {[%clk 0:00:17]}  Kc3 {[%clk 0:00:17]} 48. Kxc5 {[%clk 0:00:18]}  Kb3 {[%clk 0:00:17]} 49. Kb5 {[%clk 0:00:19]}  Kc3 {[%clk 0:00:18]} 50. c5 {[%clk 0:00:20]}  Kb3 {[%clk 0:00:18]} 51. c6 {[%clk 0:00:20]} 1-0


[Site "https://www.chess.com"]

[Event "Titled Tuesday Blitz August 15 Early 2023"]
[White "Pinero Rodriguez, Carlos Jose"]
[Black "Wong, Yinn Long"]
[WhiteFideId "3901726"]
[BlackFideId "5707684"]
[WhiteElo "2460"]
[BlackElo "2732"]
[Result "1-0"]
[Round "2"]
[TimeControl "180+1"]
[Date "2023.08.15"]
[WhiteClock "0:00:21"]
[BlackClock "0:00:19"]
[Board "74"]

1. e4 {[%clk 0:03:00]}  e6 {[%clk 0:02:57]} 2. d4 {[%clk 0:03:00]}  d5 {[%clk 0:02:57]} 3. e5 {[%clk 0:03:01]}  Bd7 {[%clk 0:02:49]} 4. c3 {[%clk 0:03:00]}  a6 {[%clk 0:02:48]} 5. Nf3 {[%clk 0:02:56]}  Bb5 {[%clk 0:02:47]} 6. Bd3 {[%clk 0:02:55]}  Bxd3 {[%clk 0:02:43]} 7. Qxd3 {[%clk 0:02:56]}  Ne7 {[%clk 0:02:43]} 8. O-O {[%clk 0:02:57]}  Nf5 {[%clk 0:02:36]} 9. a3 {[%clk 0:02:53]}  c5 {[%clk 0:02:34]} 10. b4 {[%clk 0:02:53]}  cxd4 {[%clk 0:02:20]} 11. cxd4 {[%clk 0:02:51]}  Nd7 {[%clk 0:02:21]} 12. Be3 {[%clk 0:02:51]}  Be7 {[%clk 0:02:17]} 13. Nc3 {[%clk 0:02:50]}  O-O {[%clk 0:02:16]} 14. Nxd5 {[%clk 0:02:49]}  Nxe3 {[%clk 0:02:09]} 15. Nxe3 {[%clk 0:02:43]}  Nb6 {[%clk 0:02:09]} 16. Qe4 {[%clk 0:02:41]}  Qd7 {[%clk 0:02:09]} 17. Rac1 {[%clk 0:02:40]}  Rac8 {[%clk 0:02:09]} 18. h4 {[%clk 0:02:39]}  Rfd8 {[%clk 0:02:03]} 19. Rfd1 {[%clk 0:02:33]}  Bf8 {[%clk 0:01:58]} 20. g3 {[%clk 0:02:28]}  Na4 {[%clk 0:01:44]} 21. Rxc8 {[%clk 0:02:12]}  Rxc8 {[%clk 0:01:39]} 22. Rd3 {[%clk 0:02:06]}  Nc3 {[%clk 0:01:35]} 23. Qg4 {[%clk 0:02:05]}  Qb5 {[%clk 0:01:27]} 24. Rd2 {[%clk 0:01:58]}  Nb1 {[%clk 0:01:26]} 25. Rd1 {[%clk 0:01:47]}  Nc3 {[%clk 0:01:22]} 26. Re1 {[%clk 0:01:29]}  Qd3 {[%clk 0:01:19]} 27. Kg2 {[%clk 0:01:19]}  b5 {[%clk 0:01:10]} 28. h5 {[%clk 0:01:15]}  h6 {[%clk 0:01:06]} 29. Rc1 {[%clk 0:00:56]}  a5 {[%clk 0:01:01]} 30. d5 {[%clk 0:00:52]}  axb4 {[%clk 0:00:55]} 31. dxe6 {[%clk 0:00:49]}  Rc6 {[%clk 0:00:42]} 32. exf7+ {[%clk 0:00:48]}  Kxf7 {[%clk 0:00:43]} 33. axb4 {[%clk 0:00:41]}  Re6 {[%clk 0:00:43]} 34. Nd4 {[%clk 0:00:33]}  Re7 {[%clk 0:00:32]} 35. e6+ {[%clk 0:00:29]}  Kg8 {[%clk 0:00:31]} 36. Nef5 {[%clk 0:00:25]}  Re8 {[%clk 0:00:30]} 37. Qg6 {[%clk 0:00:21]}  Rd8 {[%clk 0:00:21]} 38. Nxh6+ {[%clk 0:00:20]}  Kh8 {[%clk 0:00:21]} 39. Nf7+ {[%clk 0:00:20]}  Kg8 {[%clk 0:00:19]} 40. Qxd3 {[%clk 0:00:21]} 1-0


[Site "https://www.chess.com"]

[Event "Titled Tuesday Blitz August 15 Early 2023"]
[White "WindWhistler11"]
[Black "Leiva, Gianmarco"]
[BlackFideId "3804399"]
[WhiteElo "2441"]
[BlackElo "2721"]
[Result "0-1"]
[Round "2"]
[TimeControl "180+1"]
[Date "2023.08.15"]
[WhiteClock "0:00:02"]
[BlackClock "0:00:03"]
[Board "78"]

1. Nf3 {[%clk 0:03:00]}  Nf6 {[%clk 0:02:59]} 2. g3 {[%clk 0:03:00]}  d5 {[%clk 0:02:57]} 3. c4 {[%clk 0:02:59]}  e6 {[%clk 0:02:52]} 4. Bg2 {[%clk 0:02:57]}  Be7 {[%clk 0:02:52]} 5. Qc2 {[%clk 0:02:51]}  O-O {[%clk 0:02:50]} 6. O-O {[%clk 0:02:50]}  d4 {[%clk 0:02:50]} 7. e3 {[%clk 0:02:38]}  c5 {[%clk 0:02:51]} 8. exd4 {[%clk 0:02:38]}  cxd4 {[%clk 0:02:52]} 9. d3 {[%clk 0:02:37]}  Nc6 {[%clk 0:02:52]} 10. a3 {[%clk 0:02:38]}  a5 {[%clk 0:02:52]} 11. Re1 {[%clk 0:02:38]}  Nd7 {[%clk 0:02:45]} 12. Nbd2 {[%clk 0:02:33]}  e5 {[%clk 0:02:43]} 13. Rb1 {[%clk 0:02:29]}  f6 {[%clk 0:02:44]} 14. h4 {[%clk 0:02:19]}  Nc5 {[%clk 0:02:44]} 15. Ne4 {[%clk 0:02:04]}  Nxe4 {[%clk 0:02:41]} 16. Rxe4 {[%clk 0:02:02]}  Bf5 {[%clk 0:02:41]} 17. Re1 {[%clk 0:02:02]}  h5 {[%clk 0:02:20]} 18. Bd2 {[%clk 0:01:54]}  Qe8 {[%clk 0:02:17]} 19. b4 {[%clk 0:01:50]}  Qg6 {[%clk 0:02:18]} 20. Bf1 {[%clk 0:01:30]}  axb4 {[%clk 0:02:11]} 21. Bxb4 {[%clk 0:01:29]}  Qf7 {[%clk 0:01:15]} 22. Nd2 {[%clk 0:01:11]}  Ra7 {[%clk 0:01:08]} 23. Rb3 {[%clk 0:01:02]}  Rfa8 {[%clk 0:01:07]} 24. Reb1 {[%clk 0:00:49]}  Nxb4 {[%clk 0:00:54]} 25. axb4 {[%clk 0:00:48]}  Ra2 {[%clk 0:00:48]} 26. R3b2 {[%clk 0:00:47]}  R2a3 {[%clk 0:00:48]} 27. Rb3 {[%clk 0:00:36]}  Kh7 {[%clk 0:00:44]} 28. Bg2 {[%clk 0:00:32]}  Ra2 {[%clk 0:00:27]} 29. R3b2 {[%clk 0:00:31]}  R2a3 {[%clk 0:00:28]} 30. Ne4 {[%clk 0:00:29]}  Bf8 {[%clk 0:00:18]} 31. Rb3 {[%clk 0:00:29]}  Ra2 {[%clk 0:00:17]} 32. R1b2 {[%clk 0:00:27]}  Ra1+ {[%clk 0:00:17]} 33. Kh2 {[%clk 0:00:26]}  Kh8 {[%clk 0:00:16]} 34. Nc5 {[%clk 0:00:26]}  Bxc5 {[%clk 0:00:06]} 35. bxc5 {[%clk 0:00:26]}  Qg6 {[%clk 0:00:06]} 36. Bxb7 {[%clk 0:00:24]}  Rf8 {[%clk 0:00:01]} 37. Be4 {[%clk 0:00:20]}  Bxe4 {[%clk 0:00:01]} 38. dxe4 {[%clk 0:00:21]}  Ra5 {[%clk 0:00:02]} 39. Rb5 {[%clk 0:00:19]}  Ra3 {[%clk 0:00:02]} 40. c6 {[%clk 0:00:16]}  Rc3 {[%clk 0:00:02]} 41. Qe2 {[%clk 0:00:15]}  d3 {[%clk 0:00:02]} 42. Qf3 {[%clk 0:00:14]}  Rxc4 {[%clk 0:00:01]} 43. Qxd3 {[%clk 0:00:13]}  Rxc6 {[%clk 0:00:02]} 44. Rd5 {[%clk 0:00:12]}  Rfc8 {[%clk 0:00:01]} 45. Rd8+ {[%clk 0:00:11]}  Kh7 {[%clk 0:00:02]} 46. Rb8 {[%clk 0:00:10]}  Rxb8 {[%clk 0:00:02]} 47. Rxb8 {[%clk 0:00:11]}  Rc1 {[%clk 0:00:02]} 48. Qd8 {[%clk 0:00:06]}  Qxe4 {[%clk 0:00:01]} 49. Qg8+ {[%clk 0:00:06]}  Kg6 {[%clk 0:00:01]} 50. Qe8+ {[%clk 0:00:06]}  Kh6 {[%clk 0:00:01]} 51. Qh8+ {[%clk 0:00:07]}  Kg6 {[%clk 0:00:01]} 52. Qe8+ {[%clk 0:00:06]}  Kh6 {[%clk 0:00:02]} 53. Qg8 {[%clk 0:00:05]}  Qh7 {[%clk 0:00:02]} 54. Qe6 {[%clk 0:00:05]}  Rc2 {[%clk 0:00:02]} 55. Kg1 {[%clk 0:00:03]}  Rc1+ {[%clk 0:00:02]} 56. Kg2 {[%clk 0:00:04]}  Rc2 {[%clk 0:00:02]} 57. Qd5 {[%clk 0:00:03]}  Qf5 {[%clk 0:00:02]} 58. Rh8+ {[%clk 0:00:02]}  Kg6 {[%clk 0:00:03]} 59. Qd1 {[%clk 0:00:02]}  Qxf2+ {[%clk 0:00:03]} 60. Kh1 {[%clk 0:00:02]}  Qh2# {[%clk 0:00:03]} 0-1


[Site "https://www.chess.com"]